bitfinex/quotes_ETHUSD_20230830
["timestamp","ask_amount","ask_price","bid_price","bid_amount"]
[1693365884749,1.414,1715.5,1715.1,4.0371]
[1693365884950,1.414,1715.3,1715.0,0.05]
[1693365885156,11.66044,1715.2,1715.0,0.05]
[1693365888150,18.90466,1715.2,1715.0,0.05]
[1693365889474,4.414,1715.1,1715.0,0.05]
[1693365889682,21.90568,1715.1,1715.0,0.05]
[1693365889960,24.77916065,1715.1,1715.0,0.05]
[1693365891459,18.94860065,1715.1,1715.0,0.05]
[1693365893132,8.83056,1715.1,1715.0,0.05]
[1693365893763,14.66112,1715.1,1715.0,0.05]
[1693365898182,24.77916065,1715.1,1715.0,0.05]
[1693365899452,8.83056,1715.1,1715.0,0.05]
[1693365899648,3.0,1715.1,1715.0,0.05]
[1693365899974,8.83056,1715.1,1715.0,0.05]
[1693365900147,14.66112,1715.1,1715.0,0.05]
[1693365900342,5.83044,1715.2,1715.0,0.05]
[1693365901047,6.30879831,1715.2,1715.0,0.05]
[1693365901252,1.414,1715.4,1715.0,0.05]
[1693365901253,0.21808492,1715.1,1715.0,0.05]
[1693365901588,0.21808492,1715.1,1715.0,1.464]
[1693365901783,0.47262267,1715.6,1715.0,5.35060005]
[1693365901987,5.82866,1715.7,1715.1,11.02366005]
[1693365902186,11.65736,1715.7,1715.1,12.35964065]
[1693365902488,5.82796,1715.9,1715.2,1.62440034]
[1693365902675,1.21478741,1716.1,1715.1,3.97558855]
[1693365902676,11.65714,1715.7,1715.1,3.97558855]
[1693365902875,17.48571,1715.7,1715.2,1.5956]
[1693365904082,5.87348065,1715.6,1715.2,1.5956]
[1693365904286,1.414,1715.4,1715.1,2.3491]
[1693365904469,5.82988,1715.3,1715.1,2.3491]
[1693365905456,8.82981,1715.4,1715.1,2.3491]
[1693365906889,14.65952,1715.4,1715.1,2.3491]
[1693365908196,20.48923,1715.4,1715.1,2.3491]
[1693365908493,23.36271065,1715.4,1715.1,2.3491]
[1693365908673,1.414,1715.3,1715.0,0.05]
[1693365908875,11.66044,1715.2,1715.0,0.05]
[1693365909386,3.0,1715.1,1715.0,0.05]
[1693365909553,8.83056,1715.1,1715.0,0.05]
[1693365910786,20.49168,1715.1,1715.0,0.05]
[1693365910979,8.83056,1715.1,1715.0,0.05]
[1693365911193,14.66112,1715.1,1715.0,0.05]
[1693365911561,20.49168,1715.1,1715.0,0.05]
[1693365911763,24.77916065,1715.1,1715.0,0.05]
[1693365912190,5.82935,1715.5,1715.0,2.92348065]
[1693365912394,5.82904,1715.6,1715.1,3.16582872]
[1693365912689,6.68532518,1715.7,1715.1,3.16582872]
[1693365912909,5.82868,1715.7,1715.1,3.16582872]
[1693365913101,5.82868,1715.7,1715.2,0.31658287]
[1693365913311,11.65746,1715.7,1715.2,11.97682287]
[1693365913517,5.82868,1715.7,1715.2,11.97682287]
[1693365913917,0.47786763,1715.8,1715.3,3.35348065]
[1693365914111,11.2763545,1716.1,1715.4,0.33534806]
[1693365914421,5.82768,1716.0,1715.4,4.62282871]
[1693365914625,2.73157439,1716.2,1715.8,5.87348065]
[1693365914793,2.42911507,1716.6,1715.9,10.06282872]
[1693365914794,5.82553,1716.6,1715.9,10.06282872]
[1693365914994,7.03987306,1716.5,1715.9,0.48]
[1693365915304,12.86571306,1716.5,1715.8,0.48]
[1693365915511,14.27971306,1716.5,1715.8,3.35348065]
[1693365915693,14.27971306,1716.5,1715.9,0.33534806]
[1693365915900,11.65168,1716.5,1715.9,0.33534806]
[1693365916386,17.47752,1716.5,1715.9,0.33534806]
[1693365916589,18.89152,1716.5,1715.9,0.33534806]
[1693365916988,3.0,1716.4,1715.9,0.33534806]
[1693365917199,8.82632,1716.4,1715.9,0.33534806]
[1693365918387,8.82632,1716.4,1715.9,3.20882871]
[1693365918726,8.82632,1716.4,1716.0,9.31636352]
[1693365919016,8.82632,1716.4,1716.0,0.32088287]
[1693365919200,8.82632,1716.4,1715.9,6.122]
[1693365919519,8.82632,1716.4,1715.9,8.99548065]
[1693365919721,14.65267,1716.4,1715.9,2.87348065]
[1693365920713,20.47902,1716.4,1715.7,1.5079]
[1693365921021,19.97902,1716.4,1715.8,2.87348065]
[1693365922000,19.97902,1716.4,1715.6,3.60904602]
[1693365922001,17.48127,1716.2,1715.6,6.122]
[1693365922201,17.48127,1716.2,1715.6,8.99548065]
[1693365922719,17.48127,1716.2,1715.6,2.87348065]
[1693365922883,17.48127,1716.2,1715.6,8.99548065]
[1693365923421,3.0,1716.1,1715.4,2.47029408]
[1693365923630,5.82787,1715.9,1715.5,4.36631006]
[1693365923788,5.82787,1715.9,1715.5,3.35348065]
[1693365924118,5.82787,1715.9,1715.5,9.47548065]
[1693365924319,5.82787,1715.9,1715.5,3.35348065]
[1693365924623,11.65574,1715.9,1715.4,0.33534806]
[1693365924924,3.0,1715.8,1715.4,1.01288834]
[1693365925093,17.48577,1715.7,1715.3,8.18]
[1693365925289,17.48577,1715.7,1715.3,11.05348065]
[1693365925290,3.0,1715.6,1715.3,11.05348065]
[1693365925488,11.6584,1715.5,1715.3,9.34625267]
[1693365925712,11.6584,1715.5,1715.3,8.18]
[1693365925895,17.4876,1715.5,1715.3,8.18]
[1693365926622,3.0,1715.4,1715.0,0.05]
[1693365926823,17.48985,1715.3,1715.0,0.05]
[1693365926999,3.0,1715.2,1715.0,0.05]
[1693365927200,5.22267022,1715.1,1715.0,0.05]
[1693365927419,11.05323022,1715.1,1715.0,0.05]
[1693365927806,14.05323022,1715.1,1715.0,0.05]
[1693365931334,14.05323022,1715.1,1714.8,0.102]
[1693365931493,19.88379022,1715.1,1714.8,0.102]
[1693365931694,11.66248,1714.9,1714.8,0.102]
[1693365931898,10.58166089,1714.9,1714.8,1.11526792]
[1693365932227,13.58166089,1714.9,1714.8,1.11526792]
[1693365932709,7.75042089,1714.9,1714.8,1.11526792]
[1693365932916,7.75042089,1714.9,1714.8,1.06526792]
[1693365940335,3.0,1715.2,1714.9,1.01320269]
[1693365940736,3.0,1715.2,1714.9,1.62213239]
[1693365940942,3.0,1715.2,1715.0,1.01320269]
[1693365941143,3.0,1715.2,1714.8,5.43322466]
[1693365941144,8.83022,1715.2,1714.8,5.43322466]
[1693365941330,8.83022,1715.2,1714.9,1.5564939]
[1693365941637,8.83022,1715.2,1715.0,1.01317143]
[1693365942053,8.83022,1715.2,1714.9,0.54332247]
[1693365942753,14.66044,1715.2,1714.8,2.55974401]
[1693365942948,14.66044,1715.2,1714.9,1.01318815]
[1693365953378,14.66044,1715.2,1714.8,0.052]
[1693365953867,20.49066,1715.2,1714.8,0.052]
[1693365954068,14.66044,1715.2,1714.8,0.052]
[1693365954568,20.49066,1715.2,1714.8,0.052]
[1693365954743,14.66044,1715.2,1714.8,0.052]
[1693365955370,20.49066,1715.2,1714.8,0.052]
[1693365955536,14.66044,1715.2,1714.8,0.93609297]
[1693365956064,14.66044,1715.2,1714.8,0.052]
[1693365957188,14.61044,1715.2,1714.8,0.052]
[1693365958190,8.78022,1715.2,1714.8,2.92548065]
[1693365958605,0.4732385,1715.3,1714.9,3.88671132]
[1693365958775,5.82957,1715.4,1715.0,1.01315596]
[1693365959101,5.82957,1715.4,1715.0,1.40182709]
[1693365959249,5.82957,1715.4,1715.0,0.38867113]
[1693365960081,3.0,1715.3,1715.0,0.38867113]
[1693365961291,3.0,1715.3,1715.1,1.01310482]
[1693365961492,3.0,1715.3,1715.0,0.38867113]
[1693365962199,3.0,1715.3,1715.0,2.01070844]
[1693365962376,3.0,1715.3,1715.1,1.01310761]
[1693365962568,3.0,1715.3,1715.1,1.31548922]
[1693365962768,3.0,1715.3,1715.1,0.30238161]
[1693365962969,3.0,1715.3,1715.0,0.99760083]
[1693365963269,3.0,1715.3,1715.1,1.01310676]
[1693365965496,0.47175547,1715.5,1715.2,1.01310676]
[1693365965703,8.0824,1715.6,1715.2,1.01310676]
[1693365966072,11.65735,1715.7,1715.2,4.49551711]
[1693365966274,5.82867,1715.7,1715.3,2.07158817]
[1693365966609,5.82867,1715.7,1715.4,1.01310676]
[1693365966775,0.46168387,1715.7,1715.4,1.01310676]
[1693365966973,5.82788,1715.9,1715.4,3.88658741]
[1693365967177,5.82826,1715.8,1715.5,0.38865874]
[1693365967379,3.0,1715.7,1715.5,0.38865874]
[1693365967590,12.11258942,1715.9,1715.5,3.26213939]
[1693365967591,3.0,1715.8,1715.5,3.26213939]
[1693365967790,3.0,1715.8,1715.6,0.32621394]
[1693365968608,0.45668942,1715.9,1715.6,0.32621394]
[1693365968801,6.00331338,1716.0,1715.6,0.32621394]
[1693365968981,6.00331338,1716.0,1715.6,3.19969459]
[1693365969177,6.00331338,1716.0,1715.7,1.33287657]
[1693365969402,6.00331338,1716.0,1715.7,0.31996946]
[1693365969912,0.17577338,1716.0,1715.7,9.31545011]
[1693365970117,3.0,1716.0,1715.7,9.31545011]
[1693365971205,3.0,1716.0,1715.8,2.87348065]
[1693365971584,3.0,1716.1,1715.8,2.87348065]
[1693365971810,5.82697,1716.2,1715.8,2.87348065]
[1693365972593,0.47068977,1716.2,1715.9,2.91072072]
[1693365972922,35.80584,1716.5,1716.1,6.122]
[1693365973126,32.1592,1716.8,1716.2,3.48568065]
[1693365973485,41.62992,1716.8,1716.2,9.60768065]
[1693365973791,30.1568586,1716.8,1716.2,11.02568065]
[1693365973986,0.27973126,1716.9,1716.5,1.418]
[1693365974198,0.27973126,1716.9,1716.5,10.41348065]
[1693365974393,11.74823,1717.2,1716.6,5.81282872]
[1693365974589,12.21752336,1717.2,1716.6,5.81282872]
[1693365974808,6.39385336,1717.2,1716.6,11.93482872]
[1693365975018,6.39385336,1717.2,1716.6,10.89348065]
[1693365975372,6.39372336,1717.2,1716.6,10.89348065]
[1693365975486,0.57024336,1717.2,1716.6,10.89348065]
[1693365975690,0.57024336,1717.2,1716.8,6.122]
[1693365975930,0.57024336,1717.2,1717.0,6.122]
[1693365976141,0.101,1717.2,1717.1,3.35348065]
[1693365976454,0.101,1717.2,1717.1,9.47548065]
[1693365976801,0.101,1717.2,1716.9,0.6122]
[1693365977026,0.101,1717.2,1716.9,2.87348065]
[1693365977903,0.101,1717.2,1716.9,8.99548065]
[1693365979606,5.92446,1717.2,1716.7,6.122]
[1693365979863,0.101,1717.2,1716.8,9.47548065]
[1693365980000,0.101,1717.2,1716.8,10.72302871]
[1693365980845,0.101,1717.2,1716.8,4.60102871]
[1693365981047,0.101,1717.2,1716.8,3.35348065]
[1693365981252,5.92454,1717.2,1716.8,3.35348065]
[1693365981405,5.82438,1717.0,1716.2,37.4416]
[1693365981611,10.804,1717.1,1716.4,3.0]
[1693365981840,10.804,1717.1,1716.5,2.87348065]
[1693365982156,3.0,1717.1,1716.6,6.122]
[1693365982343,3.0,1717.1,1716.6,9.89502872]
[1693365983157,3.0,1717.1,1716.7,8.99548065]
[1693365983440,2.95,1717.1,1716.7,8.99548065]
[1693365984008,2.95,1717.1,1716.8,0.48]
[1693365984204,2.95,1717.1,1716.9,2.87348065]
[1693365984543,2.95,1717.1,1716.9,9.94302872]
[1693365984746,0.101,1717.2,1716.9,9.94302872]
[1693365985811,0.101,1717.2,1716.9,0.94754807]
[1693365985812,5.92449,1717.2,1716.9,0.94754807]
[1693365986034,5.92449,1717.2,1716.8,0.48]
[1693365986223,5.92449,1717.2,1716.8,3.35348065]
[1693365987528,0.101,1717.2,1716.8,3.35348065]
[1693365987963,0.101,1717.2,1716.8,9.47548065]
[1693365988170,0.101,1717.2,1716.9,8.99548065]
[1693365988369,0.101,1717.2,1716.9,9.94302872]
[1693365988926,0.101,1717.2,1717.0,0.48]
[1693365989164,0.101,1717.2,1717.1,8.99548065]
[1693365989327,0.101,1717.2,1717.1,9.47548065]
[1693365990437,0.101,1717.2,1717.1,12.47548065]
[1693365990658,0.101,1717.2,1717.1,13.94433602]
[1693365992034,0.101,1717.4,1717.1,13.94433602]
[1693365992234,0.101,1717.4,1717.2,0.48]
[1693365992568,0.101,1717.4,1717.3,8.99548065]
[1693365992730,37.36683,1717.9,1717.3,8.99548065]
[1693365992731,0.101,1718.0,1717.5,3.0]
[1693365992936,0.101,1718.2,1718.0,8.102]
[1693365993137,0.101,1718.2,1718.1,9.122]
[1693365993336,0.101,1718.2,1718.1,15.14152219]
[1693365993577,0.101,1718.7,1718.1,15.14152219]
[1693365993770,2.64871344,1718.6,1718.2,9.47548065]
[1693365994290,2.64871344,1718.6,1718.3,1.98]
[1693365994437,0.101,1718.7,1718.4,5.33348065]
[1693365994752,0.101,1718.7,1718.4,12.60102872]
[1693365994936,0.101,1718.7,1718.1,1.98]
[1693365995143,0.101,1718.7,1718.2,2.87348065]
[1693365995144,11.73786,1718.7,1718.2,2.87348065]
[1693365995359,5.91943,1718.7,1718.2,2.87348065]
[1693365995560,5.91943,1718.7,1718.2,3.35882872]
[1693365997370,5.91943,1718.7,1718.2,9.48082872]
[1693365997748,0.101,1718.7,1718.2,9.48082872]
[1693365997945,3.101,1718.7,1718.3,0.48]
[1693365998141,3.101,1718.7,1718.4,2.87348065]
[1693365998771,8.91937,1718.7,1718.3,0.48]
[1693365998971,8.91937,1718.7,1718.3,3.35348065]
[1693366000198,3.101,1718.7,1718.4,2.87348065]
[1693366000505,0.101,1718.7,1718.4,2.87348065]
[1693366001667,0.101,1718.7,1718.3,0.48]
[1693366001894,0.101,1718.7,1718.3,2.87348065]
[1693366003966,0.101,1718.7,1718.3,8.99548065]
[1693366004196,0.101,1718.7,1718.4,2.87348065]
[1693366006199,0.101,1718.7,1718.2,6.122]
[1693366006529,0.101,1718.7,1718.3,3.35348065]
[1693366007136,0.101,1718.7,1718.3,9.47548065]
[1693366007320,0.101,1718.7,1718.3,10.42302872]
[1693366012539,5.9194,1718.7,1718.3,3.35348065]
[1693366013030,5.9194,1718.7,1717.8,4.30939]
[1693366013031,3.0,1718.6,1717.8,4.30939]
[1693366013227,14.63766,1718.6,1717.9,2.87348065]
[1693366013454,16.86686,1718.6,1717.9,2.87348065]
[1693366013610,16.86686,1718.6,1718.0,6.122]
[1693366013816,16.86686,1718.6,1717.8,0.730939]
[1693366013817,11.04788,1718.6,1718.1,8.99548065]
[1693366015147,11.04788,1718.6,1718.2,0.48]
[1693366015329,11.04788,1718.6,1718.2,3.35348065]
[1693366015533,5.2292,1718.6,1718.2,3.35348065]
[1693366016121,5.2292,1718.6,1718.3,2.87348065]
[1693366016317,11.04796,1718.6,1718.2,0.48]
[1693366016555,22.68548,1718.6,1718.1,6.122]
[1693366016763,22.68548,1718.6,1718.1,8.99548065]
[1693366018866,24.66548,1718.6,1718.1,2.87348065]
[1693366019016,5.81951,1718.4,1717.9,6.122]
[1693366019222,5.81951,1718.4,1718.0,3.35348065]
[1693366020637,5.81951,1718.4,1718.0,9.47548065]
[1693366022598,5.81951,1718.4,1718.0,3.35348065]
[1693366023431,13.02796,1718.6,1718.0,9.47548065]
[1693366023432,16.86683,1718.6,1718.0,9.47548065]
[1693366023761,17.32306212,1718.6,1718.0,9.47548065]
[1693366023976,17.32306212,1718.6,1718.2,6.122]
[1693366024172,17.32306212,1718.6,1718.3,2.87348065]
[1693366024341,1.98,1718.5,1718.3,2.87348065]
[1693366024542,7.79921,1718.5,1718.3,2.87348065]
[1693366024868,3.0,1718.4,1718.0,0.48]
[1693366025165,10.79943,1718.4,1718.1,2.87348065]
[1693366025371,10.79943,1718.4,1717.9,0.48]
[1693366025554,10.79943,1718.4,1718.0,2.87348065]
[1693366026637,16.61886,1718.4,1717.9,0.48]
[1693366026837,16.61886,1718.4,1717.9,3.35348065]
[1693366027446,10.79943,1718.4,1717.9,3.35348065]
[1693366027647,3.0,1718.4,1718.0,8.99548065]
[1693366027845,3.0,1718.4,1718.1,1.37954807]
[1693366028155,3.0,1718.4,1718.1,4.25302872]
[1693366028362,8.81943,1718.4,1718.1,4.25302872]
[1693366028576,8.81943,1718.4,1718.1,3.35348065]
[1693366029568,8.81943,1718.4,1718.1,0.48]
[1693366029569,10.79943,1718.4,1718.1,0.48]
[1693366029772,1.98,1718.3,1718.0,0.48]
[1693366029974,7.79974,1718.3,1718.0,2.87348065]
[1693366030481,7.79974,1718.3,1718.0,3.20882871]
[1693366031994,8.81943,1718.4,1718.0,3.20882871]
[1693366033163,4.88,1718.3,1718.0,3.20882871]
[1693366033496,8.71981,1718.3,1718.0,2.87348065]
[1693366033695,2.9,1718.3,1718.1,2.87348065]
[1693366034797,2.9,1718.3,1718.1,8.99548065]
[1693366034986,2.9,1718.3,1718.2,7.50154807]
[1693366035193,2.9,1718.3,1718.2,10.37502872]
[1693366036277,2.9,1718.3,1718.2,11.38650172]
[1693366037866,2.9,1718.3,1718.2,5.26450172]
[1693366038102,2.9,1718.3,1718.2,4.36495365]
[1693366038397,2.9,1718.3,1718.2,4.97284664]
[1693366040298,2.9,1718.3,1718.2,5.88468613]
[1693366040506,2.9,1718.3,1718.2,4.97284664]
[1693366041404,2.9,1718.3,1718.2,5.88468613]
[1693366041601,2.9,1718.3,1718.2,7.20693334]
[1693366043200,2.9,1718.3,1718.2,5.27679314]
[1693366043382,2.9,1718.3,1718.2,1.62186314]
[1693366043814,2.9,1718.3,1718.2,0.61039014]
[1693366044299,2.9,1718.3,1718.1,2.53370263]
[1693366044707,2.9,1718.3,1718.2,1.011473]
[1693366045110,2.9,1718.3,1718.1,1.52222963]
[1693366045430,2.9,1718.3,1718.1,1.62186314]
[1693366045590,2.9,1718.3,1718.2,1.011473]
[1693366046438,2.9,1718.3,1718.1,3.24842951]
[1693366046803,2.9,1718.3,1718.2,3.88502025]
[1693366046989,2.9,1718.3,1718.2,4.36502025]
[1693366047335,2.9,1718.3,1718.2,4.50071657]
[1693366049380,2.9,1718.3,1718.2,1.14723592]
[1693366049755,2.9,1718.3,1718.1,6.49694886]
[1693366050038,2.9,1718.3,1718.1,3.24842951]
[1693366050679,2.9,1718.3,1718.2,8.99548065]
[1693366050884,2.9,1718.3,1718.2,12.47548065]
[1693366055802,2.9,1718.3,1718.2,14.45548065]
[1693366056003,2.9,1718.3,1718.2,14.1914249]
[1693366068032,2.9,1718.3,1718.2,11.1914249]
[1693366068808,2.9,1718.3,1718.2,14.1914249]
[1693366071536,2.9,1718.3,1718.2,11.1914249]
[1693366071833,2.9,1718.3,1718.2,14.1914249]
[1693366072014,2.9,1718.3,1718.2,11.1914249]
[1693366072213,2.9,1718.3,1718.2,9.47548065]
[1693366072388,2.9,1718.3,1718.2,2.87348065]
[1693366079654,2.9,1718.3,1718.2,8.99548065]
[1693366079854,2.9,1718.3,1718.2,9.47548065]
[1693366082026,2.9,1718.3,1718.2,12.47548065]
[1693366082224,2.9,1718.3,1718.2,13.72302871]
[1693366084666,2.9,1718.3,1718.2,10.72302871]
[1693366084869,2.9,1718.3,1718.2,2.87348065]
[1693366085575,2.9,1718.3,1718.2,8.99548065]
[1693366086246,10.6967,1718.3,1717.8,3.730939]
[1693366086551,10.6967,1718.3,1717.9,2.87348065]
[1693366087079,10.6967,1718.3,1717.9,8.99548065]
[1693366087790,10.6967,1718.3,1718.0,0.48]
[1693366088000,10.6967,1718.3,1718.0,3.35348065]
[1693366088204,4.877,1718.3,1718.0,3.35348065]
[1693366088512,10.69671,1718.3,1718.0,3.35348065]
[1693366094763,8.71971,1718.3,1718.2,0.5]
[1693366099599,25.33612,1718.3,1718.2,0.5]
[1693366102286,24.77212,1718.3,1718.2,0.5]
[1693366108894,25.24219555,1718.3,1718.2,0.5]
[1693366121683,23.82919555,1718.3,1718.2,0.5]
[1693366124959,25.24219555,1718.3,1718.2,0.5]
[1693366127471,24.74219555,1718.3,1718.2,0.5]
[1693366130896,24.74219555,1718.3,1717.8,8.34956181]
[1693366131099,24.74219555,1718.3,1717.9,3.88498308]
[1693366131301,24.74219555,1718.3,1717.9,2.87348065]
[1693366133704,22.34219555,1718.3,1717.9,2.87348065]
[1693366133935,22.34219555,1718.3,1717.9,3.93473872]
[1693366135746,22.34219555,1718.3,1718.2,0.5]
[1693366137020,23.86391508,1718.3,1718.2,0.5]
[1693366140600,22.34219555,1718.3,1718.2,0.5]
[1693366144748,24.84219555,1718.3,1718.2,0.5]
[1693366147219,11.78977555,1718.3,1718.2,0.5]
[1693366150239,2.97007555,1718.3,1718.2,3.37348065]
[1693366150548,2.5,1718.3,1718.2,3.85348065]
[1693366155329,2.5,1718.3,1718.2,9.97548065]
[1693366155527,2.5,1718.3,1718.2,10.97302871]
[1693366183585,2.5,1718.3,1718.2,11.98435509]
[1693366191526,2.0,1718.3,1718.2,11.98435509]
[1693366192497,2.0,1718.3,1718.2,12.5948169]
[1693366192896,2.0,1718.3,1718.2,6.4728169]
[1693366193129,2.0,1718.3,1718.2,5.47526884]
[1693366194081,2.0,1718.3,1718.2,11.59726884]
[1693366200832,1.5856,1718.5,1718.2,11.59726884]
[1693366201035,8.81763,1718.5,1718.3,1.01132638]
[1693366201232,14.63666,1718.5,1718.2,3.37348065]
[1693366201413,8.81763,1718.5,1718.2,3.37348065]
[1693366201843,8.81763,1718.5,1718.3,1.01135773]
[1693366203558,7.40463,1718.5,1718.3,1.01135773]
[1693366203931,1.5856,1718.5,1718.4,2.87348065]
[1693366204133,1.5856,1718.5,1718.4,3.35348065]
[1693366204758,6.28534667,1718.6,1718.4,3.35348065]
[1693366206047,12.10422667,1718.6,1718.4,3.35348065]
[1693366206365,7.23223,1718.5,1718.2,1.11046181]
[1693366206568,7.23223,1718.5,1718.3,1.01133866]
[1693366207539,7.23223,1718.5,1718.3,3.88481931]
[1693366207739,7.23223,1718.5,1718.3,2.87348065]
[1693366208142,5.81923,1718.5,1718.4,3.35348065]
[1693366210065,7.98054667,1718.6,1718.4,3.35348065]
[1693366210709,6.28534667,1718.6,1718.4,3.35348065]
[1693366211285,8.28534667,1718.6,1718.4,3.35348065]
[1693366215503,8.28534667,1718.6,1718.4,4.35102871]
[1693366215697,7.81876,1718.6,1718.4,4.35102871]
[1693366215866,2.0,1718.6,1718.4,4.35102871]
[1693366216266,2.0,1718.6,1718.4,3.35348065]
[1693366218518,1.5,1718.6,1718.4,3.35348065]
[1693366219026,7.31877,1718.6,1718.4,3.35348065]
[1693366223943,5.81877,1718.6,1718.4,3.35348065]
[1693366226479,5.31877,1718.6,1718.4,3.35348065]
[1693366233494,6.81877,1718.6,1718.4,3.35348065]
[1693366235801,6.81877,1718.6,1718.4,4.30102872]
[1693366235968,1.5,1718.6,1718.4,10.42302872]
[1693366240924,1.5,1718.6,1718.5,7.13320217]
[1693366241078,1.5,1718.6,1718.5,10.48668282]
[1693366250350,1.5,1718.6,1718.5,12.51014463]
[1693366250504,1.5,1718.6,1718.5,14.55271407]
[1693366251652,1.5,1718.6,1718.5,15.13546826]
[1693366253138,1.5,1718.6,1718.5,15.74533285]
[1693366254180,1.5,1718.6,1718.5,18.74521068]
[1693366255364,0.101,1718.9,1718.8,9.122]
[1693366255666,0.101,1718.9,1718.8,13.88848065]
[1693366256166,0.101,1718.9,1718.8,12.47548065]
[1693366257343,0.101,1718.9,1718.8,14.89942475]
[1693366263077,0.101,1718.9,1718.8,15.50903045]
[1693366263294,0.101,1718.9,1718.8,17.15150277]
[1693366264360,0.101,1718.9,1718.8,17.45758978]
[1693366264702,0.101,1719.0,1718.8,17.76282069]
[1693366265000,0.101,1719.0,1718.9,12.00791155]
[1693366265167,0.101,1719.0,1718.9,13.9363423]
[1693366265374,0.101,1719.0,1718.9,13.32774758]
[1693366266083,0.101,1719.0,1718.9,15.3491999]
[1693366267065,0.101,1719.0,1718.9,15.9616712]
[1693366267267,0.101,1719.0,1718.9,15.04877912]
[1693366269679,0.101,1719.0,1718.9,15.63153331]
[1693366269891,0.8103094,1719.5,1719.4,6.122]
[1693366270184,0.8103094,1719.5,1719.4,10.48613918]
[1693366271189,0.8103094,1719.5,1719.4,9.47548065]
[1693366271416,0.8103094,1719.5,1719.4,10.48618943]
[1693366274272,0.8103094,1719.5,1719.4,11.09388298]
[1693366274611,0.8103094,1719.5,1719.4,12.59442531]
[1693366277342,0.8103094,1719.5,1719.4,13.50596564]
[1693366279232,0.8103094,1719.5,1719.4,12.89827209]
[1693366279831,0.8103094,1719.5,1719.4,12.41827209]
[1693366280144,0.8103094,1719.5,1719.4,5.40260089]
[1693366280331,0.8103094,1719.5,1719.4,4.79572976]
[1693366281418,0.8103094,1719.5,1719.4,5.27572976]
[1693366281619,0.8103094,1719.5,1719.4,11.39772976]
[1693366284450,0.8103094,1719.5,1719.4,11.39689534]
[1693366284672,1.34685275,1719.6,1719.4,11.39689534]
[1693366284870,2.1638,1719.7,1719.5,4.97130739]
[1693366285070,2.1638,1719.7,1719.6,1.0106773]
[1693366285374,2.1638,1719.7,1719.6,4.97130739]
[1693366285662,0.47181527,1719.8,1719.6,11.09330739]
[1693366285879,2.2149,1719.9,1719.7,4.36415795]
[1693366286027,2.2149,1719.9,1719.7,3.35348065]
[1693366286226,2.2149,1719.9,1719.8,1.01058886]
[1693366286475,2.2149,1719.9,1719.8,4.36406951]
[1693366286626,0.1725703,1720.0,1719.8,4.36406951]
[1693366286827,0.1725703,1720.0,1719.8,3.35348065]
[1693366288138,17.6144803,1720.0,1719.7,0.60714944]
[1693366288469,1.413,1719.8,1719.7,3.48063009]
[1693366288667,7.22743,1719.9,1719.7,4.49123959]
[1693366288828,7.22743,1719.9,1719.8,1.0106095]
[1693366295810,6.62105337,1719.9,1719.8,3.88409015]
[1693366295981,6.62105337,1719.9,1719.8,4.36409015]
[1693366298861,6.62105337,1719.9,1719.8,4.36410243]
[1693366301093,7.07814301,1719.9,1719.8,4.36410243]
[1693366302633,12.89257301,1719.9,1719.8,4.36410243]
[1693366303201,12.89257301,1719.9,1719.8,3.35348065]
[1693366305446,7.07814301,1719.9,1719.8,3.35348065]
[1693366308902,10.22933411,1720.1,1719.8,3.68882871]
[1693366309194,16.04315411,1720.1,1719.9,3.35348065]
[1693366309366,14.45375411,1720.1,1719.9,3.35348065]
[1693366314317,2.82625411,1720.1,1719.9,3.35348065]
[1693366314502,2.82625411,1720.1,1720.0,0.33534806]
[1693366314677,2.82625411,1720.1,1720.0,3.68882871]
[1693366314878,0.57535411,1720.1,1720.0,3.68882871]
[1693366315478,0.101,1720.1,1720.0,3.68882871]
[1693366323724,5.81395,1720.0,1719.9,2.87348065]
[1693366324643,18.85485,1720.0,1719.5,6.122]
[1693366324844,1.413,1719.9,1719.6,2.87348065]
[1693366325043,5.81458,1719.9,1719.6,2.87348065]
[1693366326072,5.81458,1719.9,1719.7,0.48]
[1693366326281,5.81458,1719.9,1719.7,3.35348065]
[1693366345236,13.04216,1719.9,1719.4,7.64355655]
[1693366345389,13.04216,1719.9,1719.5,4.3640178]
[1693366345582,13.04216,1719.9,1719.5,3.35348065]
[1693366346531,13.04216,1719.9,1719.5,4.93128065]
[1693366352049,7.22758,1719.9,1719.5,4.93128065]
[1693366352230,7.22758,1719.9,1719.6,1.01055541]
[1693366352415,7.22758,1719.9,1719.6,3.88403606]
[1693366352651,7.22758,1719.9,1719.6,2.87348065]
[1693366357770,5.81458,1719.9,1719.7,2.87348065]
[1693366357923,11.02885,1720.0,1719.7,2.87348065]
[1693366358663,9.37595,1720.0,1719.7,2.87348065]
[1693366361019,9.37595,1720.0,1719.7,3.31191872]
[1693366361245,15.19014,1720.0,1719.7,3.31191872]
[1693366364269,9.37595,1720.0,1719.7,3.31191872]
[1693366367582,5.81375,1720.1,1719.8,0.48]
[1693366367767,5.81375,1720.1,1719.9,2.87348065]
[1693366367969,5.81375,1720.1,1719.9,3.20882871]
[1693366368918,10.89787,1720.2,1720.0,0.48]
[1693366368919,9.33901,1720.2,1720.0,0.48]
[1693366369069,9.33901,1720.2,1720.0,3.35348065]
[1693366372114,15.15232,1720.2,1720.0,3.35348065]
[1693366372314,15.15232,1720.2,1720.0,3.72236352]
[1693366374717,9.33901,1720.2,1720.0,3.72236352]
[1693366376740,1.514,1720.4,1720.1,2.87348065]
[1693366376895,0.101,1720.4,1720.2,0.48]
[1693366377087,5.91367,1720.4,1720.2,3.35348065]
[1693366377286,5.91367,1720.4,1720.2,3.68882871]
[1693366378408,0.101,1720.4,1720.2,3.68882871]
[1693366381746,5.91364,1720.4,1720.2,3.68882871]
[1693366383961,0.101,1720.4,1720.3,2.87348065]